bitfinex/quotes_BTCUSD_20251201
["timestamp","ask_amount","ask_price","bid_price","bid_amount"]
[1764564527663,1.161159,86019.0,86018.0,0.47795773]
[1764564528077,1.380459,86019.0,86018.0,0.47795773]
[1764564528311,0.822255,86019.0,86018.0,0.47795773]
[1764564528720,0.025066,86019.0,86018.0,0.47795773]
[1764564528937,1.279692,86019.0,86018.0,0.47795773]
[1764564529147,0.779692,86019.0,86018.0,0.47795773]
[1764564529530,0.203529,86019.0,86018.0,0.47795773]
[1764564529713,0.192319,86019.0,86018.0,0.47795773]
[1764564529913,0.149949,86019.0,86018.0,0.47795773]
[1764564530122,0.5,86019.0,86018.0,0.47795773]
[1764564530322,0.167743,86019.0,86018.0,0.47795773]
[1764564530521,0.5,86019.0,86018.0,0.47795773]
[1764564530892,0.663056,86019.0,86018.0,0.47795773]
[1764564531207,0.73250635,86020.0,86018.0,0.54323773]
[1764564531404,0.23250306,86021.0,86019.0,0.16415]
[1764564531603,0.23250306,86021.0,86019.0,0.06528]
[1764564532388,0.01162493,86022.0,86019.0,0.06528]
[1764564532549,0.01162466,86024.0,86021.0,0.11458]
[1764564532756,0.24412015,86024.0,86023.0,0.06528]
[1764564533704,0.01162452,86025.0,86023.0,0.06528]
[1764564533886,0.137711,86026.0,86024.0,0.06528]
[1764564534035,0.51162439,86026.0,86024.0,0.06528]
[1764564534246,0.24411413,86026.0,86024.0,0.06528]
[1764564534842,0.18568418,86026.0,86025.0,0.01610805]
[1764564535068,0.33501957,86026.0,86025.0,0.01610805]
[1764564535467,0.23249866,86022.0,86021.0,0.0493]
[1764564535847,0.23249866,86022.0,86021.0,0.11458]
[1764564536048,0.24411873,86024.0,86021.0,0.11458]
[1764564536260,0.01162439,86026.0,86021.0,0.12620506]
[1764564536466,0.14933539,86026.0,86025.0,0.001]
[1764564536693,0.14933539,86026.0,86022.0,0.01162493]
[1764564537015,0.01162452,86025.0,86022.0,0.01162493]
[1764564537365,0.01162452,86025.0,86021.0,0.15017]
[1764564537591,0.01162466,86024.0,86021.0,0.15017]
[1764564538170,0.23249828,86023.0,86021.0,0.0493]
[1764564538375,0.24411791,86024.0,86021.0,0.0493]
[1764564538576,0.23249831,86023.0,86021.0,0.0493]
[1764564539194,0.23249831,86023.0,86021.0,0.0513]
[1764564539395,0.23249831,86023.0,86021.0,0.0493]
[1764564539614,0.01162466,86024.0,86021.0,0.0493]
[1764564539933,0.01162466,86024.0,86022.0,0.06528]
[1764564540075,0.01162466,86024.0,86023.0,0.06528]
[1764564540513,4.127e-05,86027.0,86023.0,0.06528]
[1764564540728,0.50004127,86027.0,86026.0,0.06528]
[1764564540927,0.24411224,86026.0,86021.0,0.0513]
[1764564541185,0.24411224,86026.0,86021.0,0.0493]
[1764564541397,0.24411224,86026.0,86021.0,0.14817]
[1764564541559,0.24411224,86026.0,86021.0,0.15017]
[1764564541764,0.24411224,86026.0,86021.0,0.14817]
[1764564541967,0.01162466,86024.0,86022.0,0.09887]
[1764564542190,0.01162466,86024.0,86021.0,0.06192506]
[1764564542393,0.24411224,86026.0,86021.0,0.06192506]
[1764564542394,0.01162439,86026.0,86022.0,0.24412359]
[1764564542626,0.01162452,86025.0,86022.0,0.09887]
[1764564542752,0.23249549,86024.0,86022.0,0.09887]
[1764564542958,0.23250677,86019.0,86018.0,0.47795773]
[1764564543185,0.03111,86020.0,86018.0,0.47795773]
[1764564543392,0.26361573,86020.0,86018.0,0.47795773]
[1764564544437,2.444055,86019.0,86018.0,0.47795773]
[1764564544574,1.1186579,86019.0,86018.0,0.47795773]
[1764564544916,1.0575339,86019.0,86018.0,0.47795773]
[1764564545153,1.1857339,86019.0,86018.0,0.47795773]
[1764564545344,0.9872689,86019.0,86018.0,0.47895773]
[1764564545581,1.1859689,86019.0,86018.0,0.47895773]
[1764564545750,1.1859689,86019.0,86018.0,0.47795773]
[1764564545751,1.6859689,86019.0,86018.0,0.47795773]
[1764564546014,1.2998299,86019.0,86018.0,0.47895773]
[1764564546203,1.6721189,86019.0,86018.0,0.47895773]
[1764564546447,0.2130999,86019.0,86018.0,0.47895773]
[1764564546762,0.6693629,86019.0,86018.0,0.47895773]
[1764564546904,0.3990569,86019.0,86018.0,0.47895773]
[1764564547105,0.4437909,86019.0,86018.0,0.47895773]
[1764564547306,1.6289179,86019.0,86018.0,0.47895773]
[1764564547512,1.8791859,86019.0,86018.0,0.47895773]
[1764564547715,1.8733969,86019.0,86018.0,0.47895773]
[1764564548341,1.3851969,86019.0,86018.0,0.47795773]
[1764564548549,1.5133969,86019.0,86018.0,0.47795773]
[1764564548748,1.5272989,86019.0,86018.0,0.47795773]
[1764564548952,1.5252939,86019.0,86018.0,0.47795773]
[1764564549218,1.64755997,86019.0,86018.0,0.47795773]
[1764564549368,1.80313196,86019.0,86018.0,0.47795773]
[1764564549573,2.11127996,86019.0,86018.0,0.47795773]
[1764564549773,2.42849096,86019.0,86018.0,0.47795773]
[1764564550182,2.43427996,86019.0,86018.0,0.47795773]
[1764564550387,1.81076596,86019.0,86018.0,0.47795773]
[1764564550597,0.77815196,86019.0,86018.0,0.47795773]
[1764564550796,0.08978397,86019.0,86018.0,0.47795773]
[1764564550993,0.59714397,86019.0,86018.0,0.47795773]
[1764564551188,0.27619197,86019.0,86018.0,0.47795773]
[1764564551508,0.09714397,86019.0,86018.0,0.47795773]
[1764564551877,0.78909497,86019.0,86018.0,0.47795773]
[1764564552065,0.80444497,86019.0,86018.0,0.47795773]
[1764564552379,0.34406097,86019.0,86018.0,0.47795773]
[1764564552597,0.09714397,86019.0,86018.0,0.47795773]
[1764564552965,0.55528397,86019.0,86018.0,0.54323773]
[1764564553234,0.01162506,86021.0,86018.0,0.64210773]
[1764564553441,0.23250057,86022.0,86020.0,0.06528]
[1764564553594,0.2441283,86021.0,86018.0,0.47795773]
[1764564554010,0.23250621,86020.0,86018.0,0.47795773]
[1764564554208,0.2441283,86021.0,86018.0,0.47795773]
[1764564554388,0.2441283,86021.0,86020.0,0.06528]
[1764564554854,0.2441283,86021.0,86020.0,0.16415]
[1764564555033,0.23250677,86019.0,86018.0,0.47795773]
[1764564555264,0.31298677,86019.0,86018.0,0.47795773]
[1764564556702,0.33788492,86019.0,86018.0,0.47795773]
[1764564556911,3.52302492,86019.0,86018.0,0.47795773]
[1764564557115,0.66088492,86019.0,86018.0,0.47795773]
[1764564557388,3.11338092,86019.0,86018.0,0.47795773]
[1764564557591,3.11384692,86019.0,86018.0,0.47995773]
[1764564557951,3.11963692,86019.0,86018.0,0.47795773]
[1764564558161,5.09458691,86019.0,86018.0,0.47795773]
[1764564558329,5.50546391,86019.0,86018.0,0.47795773]
[1764564558669,0.72340791,86019.0,86018.0,0.47795773]
[1764564559035,3.50025391,86019.0,86018.0,0.47795773]
[1764564559289,3.58635191,86019.0,86018.0,0.47795773]
[1764564559502,3.64186991,86019.0,86018.0,0.47795773]
[1764564559664,0.72340791,86019.0,86018.0,0.47795773]
[1764564559827,3.64150691,86019.0,86018.0,0.47795773]
[1764564560030,0.72340791,86019.0,86018.0,0.47795773]
[1764564560696,3.11319291,86019.0,86018.0,0.47795773]
[1764564560892,2.92737191,86019.0,86018.0,0.47795773]
[1764564561093,0.72340791,86019.0,86018.0,0.47795773]
[1764564561297,2.63634891,86019.0,86018.0,0.47795773]
[1764564561473,2.78945591,86019.0,86018.0,0.47795773]
[1764564561875,2.78819791,86019.0,86018.0,0.47795773]
[1764564562495,2.93303891,86019.0,86018.0,0.47795773]
[1764564562896,1.45210591,86019.0,86018.0,0.47795773]
[1764564563064,2.24527991,86019.0,86018.0,0.47795773]
[1764564563281,2.70675491,86019.0,86018.0,0.47795773]
[1764564563601,2.86746091,86019.0,86018.0,0.47795773]
[1764564564179,3.12746091,86019.0,86018.0,0.47795773]
[1764564564414,2.86746091,86019.0,86018.0,0.47795773]
[1764564564635,3.18876891,86019.0,86018.0,0.47795773]
[1764564564984,3.18297991,86019.0,86018.0,0.47795773]
[1764564565184,3.18876891,86019.0,86018.0,0.47795773]
[1764564565422,0.72340791,86019.0,86018.0,0.47795773]
[1764564565603,0.87613392,86019.0,86018.0,0.47795773]
[1764564565817,1.26944392,86019.0,86018.0,0.47795773]
[1764564565999,1.43385292,86019.0,86018.0,0.47795773]
[1764564566156,0.66088492,86019.0,86018.0,0.47795773]
[1764564566522,1.37434292,86019.0,86018.0,0.47795773]
[1764564566676,1.37208192,86019.0,86018.0,0.47795773]
[1764564566883,0.66088492,86019.0,86018.0,0.47795773]
[1764564567263,0.95377692,86019.0,86018.0,0.47795773]
[1764564567468,1.40226977,86019.0,86018.0,0.47795773]
[1764564567878,1.41325977,86019.0,86018.0,0.47795773]
[1764564568377,0.23986677,86019.0,86018.0,0.47795773]
[1764564568900,1.15879777,86019.0,86018.0,0.47795773]
[1764564569078,1.15555177,86019.0,86018.0,0.47795773]
[1764564569276,2.07663058,86019.0,86018.0,0.47795773]
[1764564569479,0.26475458,86019.0,86018.0,0.47795773]
[1764564569681,0.69977757,86019.0,86018.0,0.47795773]
[1764564569886,0.69977757,86019.0,86018.0,0.47995773]
[1764564570107,5.48183357,86019.0,86018.0,0.47995773]
[1764564570778,5.51221707,86019.0,86018.0,0.47795773]
[1764564570917,5.21159407,86019.0,86018.0,0.47795773]
[1764564571125,5.44877307,86019.0,86018.0,0.47795773]
[1764564571445,5.39840607,86019.0,86018.0,0.47795773]
[1764564571698,0.73116107,86019.0,86018.0,0.47795773]
[1764564571854,5.41159207,86019.0,86018.0,0.47795773]
[1764564572036,0.73116107,86019.0,86018.0,0.47795773]
[1764564572233,5.41159207,86019.0,86018.0,0.47795773]
[1764564572422,5.41159307,86019.0,86018.0,0.47795773]
[1764564572628,5.30129207,86019.0,86018.0,0.47795773]
[1764564572827,5.26887394,86019.0,86018.0,0.47795773]
[1764564573121,5.55558694,86019.0,86018.0,0.47795773]
[1764564573326,5.47819894,86019.0,86018.0,0.47795773]
[1764564573528,0.77353094,86019.0,86018.0,0.47795773]
[1764564573927,5.55558694,86019.0,86018.0,0.47795773]
[1764564574371,5.51421707,86019.0,86018.0,0.47795773]
[1764564574743,5.51319307,86019.0,86018.0,0.47795773]
[1764564574951,5.51421707,86019.0,86018.0,0.47795773]
[1764564575721,5.03740707,86019.0,86018.0,0.47795773]
[1764564575933,5.22346707,86019.0,86018.0,0.47795773]
[1764564576141,0.73216107,86019.0,86018.0,0.47795773]
[1764564576356,5.05167907,86019.0,86018.0,0.47795773]
[1764564576564,5.23786307,86019.0,86018.0,0.47795773]
[1764564576832,4.90459007,86019.0,86018.0,0.47795773]
[1764564577006,5.27070807,86019.0,86018.0,0.47795773]
[1764564577238,5.25957507,86019.0,86018.0,0.47795773]
[1764564577449,5.51421707,86019.0,86018.0,0.47795773]
[1764564578202,0.77353094,86019.0,86018.0,0.47795773]
[1764564578407,0.73216107,86019.0,86018.0,0.47795773]
[1764564578753,5.51421707,86019.0,86018.0,0.47795773]
[1764564579323,0.73216107,86019.0,86018.0,0.47795773]
[1764564579681,5.55569174,86019.0,86018.0,0.47795773]
[1764564579954,0.77363574,86019.0,86018.0,0.47795773]
[1764564580536,5.55569174,86019.0,86018.0,0.47795773]
[1764564580732,0.77363574,86019.0,86018.0,0.47795773]
[1764564581057,5.55569174,86019.0,86018.0,0.47795773]
[1764564581437,5.59063919,86019.0,86018.0,0.47795773]
[1764564581644,0.80858319,86019.0,86018.0,0.47795773]
[1764564582080,5.59063919,86019.0,86018.0,0.47795773]
[1764564582640,0.80858319,86019.0,86018.0,0.47795773]
[1764564582904,5.59063919,86019.0,86018.0,0.47795773]
[1764564583456,5.58327919,86019.0,86018.0,0.51844489]
[1764564583650,4.84479775,86019.0,86018.0,0.47795773]
[1764564583852,5.54916452,86019.0,86018.0,0.47795773]
[1764564584564,0.76710852,86019.0,86018.0,0.47795773]
[1764564584743,5.58028904,86019.0,86018.0,0.47795773]
[1764564585052,5.54916452,86019.0,86018.0,0.47795773]
[1764564585473,0.76710852,86019.0,86018.0,0.47795773]
[1764564585605,5.54916452,86019.0,86018.0,0.47795773]
[1764564586490,0.76710852,86019.0,86018.0,0.47795773]
[1764564586717,5.54916452,86019.0,86018.0,0.47795773]
[1764564586918,0.76710852,86019.0,86018.0,0.47795773]
[1764564587180,5.85905277,86019.0,86018.0,0.47795773]
[1764564587317,5.85905277,86019.0,86018.0,1e-08]
[1764564588162,1.07599677,86019.0,86018.0,1e-08]
[1764564588370,5.85905277,86019.0,86018.0,1e-08]
[1764564588527,5.85805277,86019.0,86018.0,1e-08]
[1764564588927,1.07899677,86019.0,86018.0,1e-08]
[1764564589147,5.86105277,86019.0,86018.0,1e-08]
[1764564589358,5.86205277,86019.0,86018.0,1e-08]
[1764564590204,1.07999677,86019.0,86018.0,1e-08]
[1764564590400,5.86205277,86019.0,86018.0,1e-08]
[1764564591471,1.07999677,86019.0,86018.0,1e-08]
[1764564591712,5.86205277,86019.0,86018.0,1e-08]
[1764564592080,5.90354251,86019.0,86018.0,1e-08]
[1764564592607,1.07999677,86019.0,86018.0,1e-08]
[1764564593224,5.86205277,86019.0,86018.0,1e-08]
[1764564593663,1.07999677,86019.0,86018.0,1e-08]
[1764564593865,5.86205277,86019.0,86018.0,1e-08]
[1764564594211,1.07999677,86019.0,86018.0,1e-08]
[1764564594410,5.86205277,86019.0,86018.0,1e-08]
[1764564594611,1.07999677,86019.0,86018.0,1e-08]
[1764564594942,5.86205277,86019.0,86018.0,1e-08]
[1764564595929,1.07999677,86019.0,86018.0,1e-08]
[1764564596129,5.86205277,86019.0,86018.0,1e-08]
[1764564597535,1.07999677,86019.0,86018.0,1e-08]
[1764564597741,5.86205277,86019.0,86018.0,1e-08]
[1764564598752,1.07999677,86019.0,86018.0,1e-08]
[1764564598985,5.86205277,86019.0,86018.0,1e-08]
[1764564600386,1.07999677,86019.0,86018.0,1e-08]
[1764564600591,0.62242553,86019.0,86018.0,1e-08]
[1764564600870,2.52901135,86019.0,86018.0,1e-08]
[1764564601088,5.20815435,86019.0,86018.0,1e-08]
[1764564601285,5.59267734,86019.0,86018.0,1e-08]
[1764564601503,0.81062134,86019.0,86018.0,1e-08]
[1764564601756,0.85773032,86019.0,86018.0,1e-08]
[1764564601977,5.58967734,86019.0,86018.0,1e-08]
[1764564602094,5.59067734,86019.0,86018.0,1e-08]
[1764564602296,0.76710852,86019.0,86018.0,1e-08]
[1764564602498,5.54916452,86019.0,86018.0,1e-08]
[1764564602755,5.57117663,86019.0,86018.0,1e-08]
[1764564603741,0.78912063,86019.0,86018.0,1e-08]
[1764564603973,5.54916452,86019.0,86018.0,1e-08]
[1764564604326,4.26297653,86019.0,86018.0,1e-08]
[1764564604527,4.61724453,86019.0,86018.0,1e-08]
[1764564604850,4.61456952,86019.0,86018.0,1e-08]
[1764564605055,4.73617001,86019.0,86018.0,1e-08]
[1764564605390,5.26208552,86019.0,86018.0,1e-08]
[1764564605678,5.27818352,86019.0,86018.0,1e-08]
[1764564605883,5.54916452,86019.0,86018.0,1e-08]
[1764564606181,5.59068742,86019.0,86018.0,1e-08]
[1764564607136,5.54916452,86019.0,86018.0,1e-08]
[1764564607565,5.59067291,86019.0,86018.0,1e-08]
[1764564607766,0.80861691,86019.0,86018.0,1e-08]
[1764564607976,5.59067291,86019.0,86018.0,1e-08]
[1764564608107,5.54916452,86019.0,86018.0,1e-08]
[1764564609883,0.76710852,86019.0,86018.0,1e-08]
[1764564610083,5.54916452,86019.0,86018.0,1e-08]
[1764564610443,0.71809852,86019.0,86018.0,1e-08]
[1764564610648,2.00741552,86019.0,86018.0,1e-08]
[1764564610834,1.85124652,86019.0,86018.0,1e-08]
[1764564611039,0.76710852,86019.0,86018.0,1e-08]
[1764564611854,2.74621152,86019.0,86018.0,1e-08]
[1764564612073,2.76277052,86019.0,86018.0,1e-08]
[1764564612313,2.81071352,86019.0,86018.0,1e-08]
[1764564612526,0.76710852,86019.0,86018.0,1e-08]
[1764564612849,2.45142741,86019.0,86018.0,1e-08]
[1764564612976,2.80302341,86019.0,86018.0,1e-08]
[1764564613178,1.54922641,86019.0,86018.0,1e-08]
[1764564613382,2.56476252,86019.0,86018.0,1e-08]
[1764564613603,2.49760952,86019.0,86018.0,1e-08]
[1764564613815,2.61144352,86019.0,86018.0,1e-08]
[1764564614009,2.80836652,86019.0,86018.0,1e-08]
[1764564614274,0.76710852,86019.0,86018.0,1e-08]
[1764564614440,2.92009252,86019.0,86018.0,1e-08]
[1764564614598,2.89800652,86019.0,86018.0,1e-08]
[1764564614802,2.91067152,86019.0,86018.0,1e-08]
[1764564615005,2.80791252,86019.0,86018.0,1e-08]
[1764564615208,2.53752039,86019.0,86018.0,1e-08]
[1764564615437,2.86325939,86019.0,86018.0,1e-08]
[1764564615609,2.67457839,86019.0,86018.0,1e-08]
[1764564615811,2.77192239,86019.0,86018.0,1e-08]
[1764564616013,2.16546139,86019.0,86018.0,1e-08]
[1764564616263,1.56427239,86019.0,86018.0,1e-08]
[1764564616589,1.74635239,86019.0,86018.0,1e-08]
[1764564616789,1.24511939,86019.0,86018.0,1e-08]
[1764564616933,1.42242039,86019.0,86018.0,1e-08]
[1764564617132,1.46587439,86019.0,86018.0,1e-08]
[1764564617471,1.52639739,86019.0,86018.0,1e-08]
[1764564617676,0.76710939,86019.0,86018.0,1e-08]
[1764564617875,1.66551439,86019.0,86018.0,1e-08]
[1764564618034,1.66549939,86019.0,86018.0,1e-08]
[1764564618236,1.58261339,86019.0,86018.0,1e-08]
[1764564618462,1.67799639,86019.0,86018.0,1e-08]
[1764564618662,1.64318139,86019.0,86018.0,1e-08]
[1764564618869,0.76710939,86019.0,86018.0,1e-08]
[1764564619082,1.59323239,86019.0,86018.0,1e-08]
[1764564619425,0.76710939,86019.0,86018.0,1e-08]
[1764564619772,1.69781539,86019.0,86018.0,1e-08]
[1764564620110,1.59094839,86019.0,86018.0,1e-08]
[1764564620306,1.59074739,86019.0,86018.0,1e-08]
[1764564620458,1.86425739,86019.0,86018.0,1e-08]
[1764564620664,1.84038539,86019.0,86018.0,1e-08]
[1764564620864,1.83705639,86019.0,86018.0,1e-08]
[1764564621066,0.76710939,86019.0,86018.0,1e-08]
[1764564621265,1.85195739,86019.0,86018.0,1e-08]
[1764564621485,1.98412839,86019.0,86018.0,1e-08]
[1764564621691,1.88961739,86019.0,86018.0,1e-08]
[1764564621946,1.89163239,86019.0,86018.0,1e-08]
[1764564622198,1.83845039,86019.0,86018.0,1e-08]
[1764564622325,0.61161663,86019.0,86018.0,1e-08]
[1764564622708,0.59882863,86019.0,86018.0,1e-08]
[1764564622826,0.55511118,86019.0,86018.0,1e-08]
[1764564623024,0.53349768,86019.0,86018.0,1e-08]
[1764564624469,0.35724868,86019.0,86018.0,1e-08]
[1764564624871,0.53345968,86019.0,86018.0,1e-08]
[1764564625483,0.58295968,86019.0,86018.0,1e-08]
[1764564625682,4.92199072,86019.0,86018.0,1e-08]
[1764564625912,0.61521073,86019.0,86018.0,1e-08]
[1764564626058,0.38483373,86019.0,86018.0,1e-08]
[1764564626258,0.67686973,86019.0,86018.0,1e-08]
[1764564626689,0.78515168,86019.0,86018.0,1e-08]
[1764564626954,0.71814968,86019.0,86018.0,1e-08]
[1764564627106,0.61878668,86019.0,86018.0,1e-08]
[1764564627293,0.52578768,86019.0,86018.0,1e-08]
[1764564627488,0.45043768,86019.0,86018.0,1e-08]
[1764564627690,0.49995768,86019.0,86018.0,1e-08]
[1764564628489,0.50095768,86019.0,86018.0,1e-08]
[1764564629805,0.56348067,86019.0,86018.0,1e-08]
[1764564630004,5.35769058,86019.0,86018.0,1e-08]
[1764564630177,5.24398767,86019.0,86018.0,1e-08]
[1764564630379,5.28549606,86019.0,86018.0,1e-08]
[1764564630743,4.92098767,86019.0,86018.0,1e-08]
[1764564631185,0.13893167,86019.0,86018.0,1e-08]
[1764564631394,4.92098767,86019.0,86018.0,1e-08]
[1764564631982,5.42098767,86019.0,86018.0,1e-08]
[1764564632867,5.24398767,86019.0,86018.0,1e-08]
[1764564633399,5.27514836,86019.0,86018.0,1e-08]
[1764564633984,0.49309236,86019.0,86018.0,1e-08]
[1764564634177,5.27514836,86019.0,86018.0,1e-08]
[1764564634634,5.35769058,86019.0,86018.0,1e-08]
[1764564634797,5.39919897,86019.0,86018.0,1e-08]
[1764564634995,5.35769058,86019.0,86018.0,1e-08]
[1764564635226,0.61717133,86019.0,86018.0,1e-08]
[1764564635423,5.39922733,86019.0,86018.0,1e-08]
[1764564635623,5.39822733,86019.0,86018.0,1e-08]
[1764564636022,5.39922733,86019.0,86018.0,1e-08]
[1764564636247,5.39822733,86019.0,86018.0,1e-08]
[1764564636459,5.40222733,86019.0,86018.0,1e-08]
[1764564636646,5.40688757,86019.0,86018.0,1e-08]
[1764564636863,5.40288757,86019.0,86018.0,1e-08]
[1764564637091,5.40688757,86019.0,86018.0,1e-08]
[1764564637231,5.36435082,86019.0,86018.0,1e-08]
[1764564637435,5.36535082,86019.0,86018.0,1e-08]
[1764564637985,5.36135082,86019.0,86018.0,1e-08]
[1764564638163,5.36335082,86019.0,86018.0,1e-08]
[1764564638691,0.58129482,86019.0,86018.0,1e-08]
[1764564638875,5.36435082,86019.0,86018.0,1e-08]
[1764564641285,5.42661277,86019.0,86018.0,1e-08]
[1764564641468,0.64455677,86019.0,86018.0,1e-08]
[1764564641644,5.42661277,86019.0,86018.0,1e-08]
[1764564642005,5.36435082,86019.0,86018.0,1e-08]
[1764564643192,5.42659951,86019.0,86018.0,1e-08]
[1764564643760,0.64454351,86019.0,86018.0,1e-08]
[1764564643996,5.67179951,86019.0,86018.0,1e-08]
[1764564645639,0.88974351,86019.0,86018.0,1e-08]
[1764564645840,5.67179951,86019.0,86018.0,1e-08]
[1764564646040,0.88974351,86019.0,86018.0,1e-08]
[1764564646264,5.67179951,86019.0,86018.0,1e-08]
[1764564646568,5.67180516,86019.0,86018.0,1e-08]
[1764564647576,5.58466214,86019.0,86018.0,1e-08]
[1764564648146,0.80260614,86019.0,86018.0,1e-08]
[1764564648326,5.58466214,86019.0,86018.0,1e-08]
[1764564650167,0.80260614,86019.0,86018.0,1e-08]
[1764564650362,5.58466214,86019.0,86018.0,1e-08]
[1764564653650,0.80260614,86019.0,86018.0,1e-08]
[1764564653850,5.58466214,86019.0,86018.0,1e-08]
[1764564655057,5.47831923,86019.0,86018.0,1e-08]
[1764564655215,5.5611352,86019.0,86018.0,1e-08]
[1764564655416,0.7790792,86019.0,86018.0,1e-08]
[1764564655620,5.47831923,86019.0,86018.0,1e-08]
[1764564655820,5.47731923,86019.0,86018.0,1e-08]
[1764564655999,5.58802214,86019.0,86018.0,1e-08]
[1764564656202,5.67683811,86019.0,86018.0,1e-08]
[1764564656513,5.67183811,86019.0,86018.0,1e-08]
[1764564656722,5.79333811,86019.0,86018.0,1e-08]
[1764564656927,5.79333811,86019.0,86007.0,0.0002565]
[1764564656928,0.64916949,86008.0,86007.0,1e-08]
[1764564657278,5.68427549,86008.0,86007.0,1e-08]
[1764564657483,5.73328549,86008.0,86007.0,1e-08]
[1764564657610,5.73794666,86008.0,86007.0,1e-08]
[1764564658633,0.95589066,86008.0,86007.0,1e-08]
[1764564658852,5.85083083,86008.0,86007.0,1e-08]
[1764564659054,5.85283083,86008.0,86007.0,1e-08]
[1764564659478,1.07077483,86008.0,86007.0,1e-08]
[1764564659917,5.85283083,86008.0,86007.0,1e-08]
[1764564660271,5.74094666,86008.0,86007.0,1e-08]
[1764564660674,0.95889066,86008.0,86007.0,1e-08]
[1764564660905,5.74094666,86008.0,86007.0,1e-08]
[1764564662864,0.95889066,86008.0,86007.0,1e-08]
[1764564663025,5.08215167,86008.0,86007.0,1e-08]
[1764564663226,5.67842367,86008.0,86007.0,1e-08]
[1764564663627,5.74094666,86008.0,86007.0,1e-08]
[1764564664353,0.95689066,86008.0,86007.0,1e-08]
[1764564664504,5.73794666,86008.0,86007.0,1e-08]
[1764564664704,5.73794666,86008.0,86007.0,0.00100001]
[1764564664903,5.73894666,86008.0,86007.0,0.00100001]
[1764564665106,0.95689066,86008.0,86007.0,0.00100001]
[1764564665596,5.73894666,86008.0,86007.0,0.00100001]
[1764564665880,5.73894666,86008.0,86007.0,0.06587001]
[1764564665881,0.71978167,86008.0,86007.0,0.06587001]
[1764564666123,0.5923317,86008.0,86007.0,0.08585801]
[1764564666255,0.56119767,86008.0,86007.0,0.02098801]
[1764564666465,0.87902067,86008.0,86007.0,0.00100001]
[1764564666659,0.92268367,86008.0,86007.0,0.00100001]
[1764564666883,0.92094967,86008.0,86007.0,0.00100001]
[1764564667283,0.7234325,86008.0,86007.0,0.00100001]
[1764564667449,0.8161615,86008.0,86007.0,1e-08]
[1764564667648,0.8151615,86008.0,86007.0,0.00600001]
[1764564667855,0.5555365,86008.0,86007.0,0.00600001]
[1764564668053,1.0699005,86008.0,86007.0,1e-08]
[1764564668352,0.9417005,86008.0,86007.0,0.00700001]
[1764564668535,0.9404125,86008.0,86007.0,0.00700001]
[1764564668935,0.5555365,86008.0,86007.0,0.00700001]
[1764564669147,0.9397765,86008.0,86007.0,0.00700001]
[1764564669357,1.2543465,86008.0,86007.0,0.00700001]
[1764564669561,0.5555365,86008.0,86007.0,0.00700001]
[1764564669758,1.0305565,86008.0,86007.0,0.00700001]
[1764564670010,1.0230125,86008.0,86007.0,0.00700001]
[1764564670214,1.2642015,86008.0,86007.0,0.00700001]
[1764564670418,0.6050365,86008.0,86007.0,0.00700001]
[1764564670620,0.9775945,86008.0,86007.0,0.00700001]
[1764564670932,1.2485895,86008.0,86007.0,0.00700001]
[1764564671115,4.22179649,86008.0,86007.0,0.00700001]
[1764564671248,0.66755949,86008.0,86007.0,0.00700001]
[1764564671454,3.27324749,86008.0,86007.0,0.00700001]
[1764564671697,3.38623749,86008.0,86007.0,0.00700001]
[1764564671865,3.15094949,86008.0,86007.0,0.00700001]
[1764564672067,3.41094949,86008.0,86007.0,0.00700001]
[1764564672280,2.51187049,86008.0,86007.0,1e-08]
[1764564672507,2.73395349,86008.0,86007.0,0.00400001]
[1764564672704,1.1274854,86008.0,86007.0,0.00400001]
[1764564672909,1.0859204,86008.0,86007.0,0.00400001]
[1764564673109,2.3390154,86008.0,86007.0,0.00400001]
[1764564673335,2.7222044,86008.0,86007.0,0.00400001]
[1764564673497,0.6361744,86008.0,86007.0,0.00400001]
[1764564673699,2.5165264,86008.0,86007.0,0.00400001]
[1764564673933,2.8558664,86008.0,86007.0,0.00400001]
[1764564674112,2.8558694,86008.0,86007.0,0.00400001]
[1764564674313,2.8558684,86008.0,86007.0,0.00400001]
[1764564674531,0.6361744,86008.0,86007.0,0.00400001]
[1764564674758,3.1894204,86008.0,86007.0,0.00400001]
[1764564674956,3.2097874,86008.0,86007.0,0.00400001]
[1764564675202,3.96504949,86008.0,86007.0,0.00400001]
[1764564675349,4.91208349,86008.0,86007.0,0.00400001]
[1764564675554,4.23359349,86008.0,86007.0,0.00400001]
[1764564675752,4.23191749,86008.0,86007.0,0.00400001]
[1764564675934,4.23143149,86008.0,86007.0,0.00400001]
[1764564676139,4.23143649,86008.0,86007.0,0.00400001]
[1764564676341,3.97143649,86008.0,86007.0,0.00400001]
[1764564676539,5.5633284,86008.0,86007.0,0.00400001]
[1764564676989,0.66756949,86008.0,86007.0,0.00400001]
[1764564677193,5.44962549,86008.0,86007.0,0.00400001]
[1764564678343,5.69582549,86008.0,86007.0,1e-08]
[1764564678588,0.91376949,86008.0,86007.0,1e-08]
[1764564678803,5.40013442,86001.0,86000.0,0.0002]
[1764564679000,5.40798442,86001.0,86000.0,0.0002]
[1764564679200,5.46062442,86001.0,86000.0,0.0002]
[1764564680401,0.67856842,86001.0,86000.0,0.0002]
[1764564680655,5.46062442,86001.0,86000.0,0.0032]
[1764564681057,5.57432733,86001.0,86000.0,0.0032]
[1764564681400,5.57998825,86001.0,86000.0,0.0002]
[1764564681585,0.79793225,86001.0,86000.0,0.0002]
[1764564681785,5.57998825,86001.0,86000.0,0.0002]
[1764564682034,0.79793225,86001.0,86000.0,0.0022]
[1764564682365,5.57998825,86001.0,86000.0,0.0022]
[1764564682552,1.04313225,86001.0,86000.0,0.0022]
[1764564682962,5.82518825,86001.0,86000.0,0.0022]
[1764564684642,1.04313225,86001.0,86000.0,0.0022]
[1764564684861,5.82518825,86001.0,86000.0,0.0022]
[1764564685745,1.04313225,86001.0,86000.0,0.0022]
[1764564686019,5.82518825,86001.0,86000.0,0.0022]
[1764564686316,5.85557967,86001.0,86000.0,0.0022]
[1764564688020,5.78334569,86001.0,86000.0,0.0022]
[1764564688227,5.74187676,86001.0,86000.0,0.0022]
[1764564688626,0.95982076,86001.0,86000.0,0.0022]
[1764564688861,5.74187676,86001.0,86000.0,0.0022]
[1764564691553,0.95882076,86001.0,86000.0,0.0022]
[1764564691777,5.85457967,86001.0,86000.0,0.0022]
[1764564692663,5.85457967,86001.0,86000.0,0.0002]
[1764564693011,1.07352367,86001.0,86000.0,0.0012]
[1764564693325,5.85557967,86001.0,86000.0,0.0012]
[1764564693504,5.85457967,86001.0,86000.0,0.0012]
[1764564693905,5.85557967,86001.0,86000.0,0.0012]
[1764564694407,1.07352367,86001.0,86000.0,0.0012]
[1764564694706,5.85457967,86001.0,86000.0,0.0012]